Workbook

Sheet Lista de Tabelas

Sheet 1. Histórico de Produção
B2: 1. HISTÓRICO DA PRODUÇÃO NACIONAL
B6: Tabela 1. Histórico de produção de petróleo – óleo e condensado (Mbbl/d)
B8: Mês/Ano | C8: 06/2024 | D8: 07/2024 | E8: 08/2024 | F8: 09/2024 | G8: 10/2024 | H8: 11/2024 | I8: 12/2024 | J8: 01/2025 | K8: 02/2025 | L8: 03/2025 | M8: 04/2025 | N8: 05/2025 | O8: 06/2025
B9: Condensado | C9: 7.011494203 | D9: 6.819543074 | E9: 7.441463255 | F9: 7.380828911 | G9: 7.663896095 | H9: 7.488427643 | I9: 7.894646297 | J9: 6.721620877 | K9: 7.026604633 | L9: 6.790894409 | M9: 6.923564756 | N9: 6.843644611 | O9: 6.44570986
B10: Óleo | C10: 3404.653982 | D10: 3225.59059 | E10: 3335.215448 | F10: 3465.102442 | G10: 3263.24773 | H10: 3305.079981 | I10: 3413.336314 | J10: 3441.924701 | K10: 3481.07171 | L10: 3614.019501 | M10: 3625.172378 | N10: 3672.229532 | O10: 3751.042226
B11: Total | C11: 3411.665477 | D11: 3232.410133 | E11: 3342.656911 | F11: 3472.483271 | G11: 3270.911626 | H11: 3312.568408 | I11: 3421.23096 | J11: 3448.646322 | K11: 3488.098315 | L11: 3620.810396 | M11: 3632.095942 | N11: 3679.073177 | O11: 3757.487936
B14: Tabela 2. Histórico de produção de gás natural – GASA e GASN (MMm³/d)
B16: Mês/Ano | C16: 06/2024 | D16: 07/2024 | E16: 08/2024 | F16: 09/2024 | G16: 10/2024 | H16: 11/2024 | I16: 12/2024 | J16: 01/2025 | K16: 02/2025 | L16: 03/2025 | M16: 04/2025 | N16: 05/2025 | O16: 06/2025
B17: GASA | C17: 138.3407921 | D17: 135.448089 | E17: 141.8843002 | F17: 150.615949 | G17: 138.7854892 | H17: 141.0844366 | I17: 143.7242951 | J17: 146.5025384 | K17: 147.7955891 | L17: 154.9338739 | M17: 155.2692422 | N17: 158.0678784 | O17: 163.2385249
B18: GASN | C18: 11.83442887 | D18: 15.92780203 | E18: 17.92406345 | F18: 19.42443303 | G18: 20.16465716 | H18: 16.65182023 | I18: 17.402905 | J18: 14.25826739 | K18: 10.96792057 | L18: 10.59377023 | M18: 12.73767917 | N18: 14.22843032 | O18: 18.39754577
B19: Total | C19: 150.175221 | D19: 151.375891 | E19: 159.8083636 | F19: 170.040382 | G19: 158.9501463 | H19: 157.7362568 | I19: 161.1272001 | J19: 160.7608058 | K19: 158.7635096 | L19: 165.5276441 | M19: 168.0069213 | N19: 172.2963087 | O19: 181.6360707
B22: Tabela 3. Histórico da movimentação de gás natural (Mm³/d)
B24: Mês/Ano | C24: Consumo Interno | D24: Queima | E24: Injeção | F24: Disponível | G24: Produção | H24: Aproveitamento (%) | I24: Injeção descontando CO2 | J24: Produção descontando CO2
B25: 06/2024 | C25: 16172.61773 | D25: 3052.446667 | E25: 84245.09647 | F25: 46705.0601 | G25: 150175.221 | H25: 0.9797760171 | I25: 63584.93047 | J25: 125026.3149
B26: 07/2024 | C26: 15627.95852 | D26: 3379.876419 | E26: 82543.42329 | F26: 49824.63277 | G26: 151375.891 | H26: 0.9777819546 | I26: 62674.71708 | J26: 125769.3663
B27: 08/2024 | C27: 15259.75952 | D27: 3609.714065 | E27: 86579.15003 | F27: 54359.74003 | G27: 159808.3636 | H27: 0.9775080823 | I27: 65377.70615 | J27: 132528.755
B28: 09/2024 | C28: 16009.48377 | D28: 3632.629167 | E28: 93496.96413 | F28: 56901.30493 | G28: 170040.382 | H28: 0.9787376381 | I28: 68265.09854 | J28: 140277.8401
B29: 10/2024 | C29: 15415.21165 | D29: 3580.67771 | E29: 83833.52735 | F29: 56120.72961 | G29: 158950.1463 | H29: 0.9775974897 | I29: 60401.76678 | J29: 131588.889
B30: 11/2024 | C30: 15644.8962 | D30: 6207.5537 | E30: 85117.0216 | F30: 50766.7853 | G30: 157736.2568 | H30: 0.9608407721 | I30: 60729.08932 | J30: 128803.4761
B31: 12/2024 | C31: 16565.3591 | D31: 5651.261 | E31: 87786.72042 | F31: 51123.85955 | G31: 161127.2001 | H31: 0.9651021938 | I31: 62820.64366 | J31: 131849.4809
B32: 01/2025 | C32: 17033.62316 | D32: 4475.439581 | E32: 87787.49397 | F32: 51464.24906 | G32: 160760.8058 | H32: 0.9723254508 | I32: 62395.98465 | J32: 130972.1614
B33: 02/2025 | C33: 17044.76689 | D33: 4908.2655 | E33: 88267.13239 | F33: 48543.34486 | G33: 158763.5096 | H33: 0.9692769515 | I33: 62429.97966 | J33: 128635.7086
B34: 03/2025 | C34: 17582.07794 | D34: 5765.360097 | E34: 95226.30168 | F34: 46953.90439 | G34: 165527.6441 | H34: 0.9653648869 | I34: 67728.56024 | J34: 133794.1012
B35: 04/2025 | C35: 17078.05283 | D35: 4981.691767 | E35: 90590.38663 | F35: 55356.7901 | G35: 168006.9213 | H35: 0.9705059271 | I35: 63990.46276 | J35: 136286.8207
B36: 05/2025 | C36: 17098.2641 | D36: 4287.749129 | E36: 95498.5321 | F36: 55411.76339 | G36: 172296.3087 | H36: 0.9752520649 | I36: 66917.19366 | J36: 139306.3931
B37: 06/2025 | C37: 17568.02883 | D37: 6017.5641 | E37: 96286.5563 | F37: 61763.92143 | G37: 181636.0707 | H37: 0.9670284362 | I37: 67539.31403 | J37: 147566.1826
B38: Tabela 4. Histórico de produção de petróleo e gás natural (Mboe/d)
B41: Mês/Ano | C41: 06/2024 | D41: 07/2024 | E41: 08/2024 | F41: 09/2024 | G41: 10/2024 | H41: 11/2024 | I41: 12/2024 | J41: 01/2025 | K41: 02/2025 | L41: 03/2025 | M41: 04/2025 | N41: 05/2025 | O41: 06/2025
B42: Petróleo | C42: 3411.665477 | D42: 3232.410133 | E42: 3342.656911 | F42: 3472.483271 | G42: 3270.911626 | H42: 3312.568408 | I42: 3421.23096 | J42: 3448.646322 | K42: 3488.098315 | L42: 3620.810396 | M42: 3632.095942 | N42: 3679.073177 | O42: 3757.487936
B43: Gás Natural | C43: 944.5736066 | D43: 952.125593 | E43: 1005.164244 | F43: 1069.521695 | G43: 999.7662198 | H43: 992.1310854 | I43: 1013.459474 | J43: 1011.154924 | K43: 998.5923106 | L43: 1041.137431 | M43: 1056.731614 | N43: 1083.711045 | O43: 1142.456374
B44: Total | C44: 4356.239083 | D44: 4184.535726 | E44: 4347.821155 | F44: 4542.004966 | G44: 4270.677846 | H44: 4304.699494 | I44: 4434.690434 | J44: 4459.801246 | K44: 4486.690626 | L44: 4661.947827 | M44: 4688.827556 | N44: 4762.784222 | O44: 4899.94431

Sheet 2. Dados de Produção
B2: 2. DADOS DE PRODUÇÃO - DISTRIBUIÇÃO
B6: Tabela 5. Distribuição da produção de petróleo e gás natural por estado
B8: Estado | C8: Petróleo (bbl/d) | D8: Gás Natural (Mm³/d) | E8: Produção Total (boe/d) | F8: Nº Campos produtores
B9: Rio de Janeiro | C9: 3336857.864 | D9: 139240.7812 | E9: 4212655.922 | F9: 48
B10: São Paulo | C10: 165041.97 | D10: 9713.011033 | E10: 226134.9639 | F10: 7
B11: Espírito Santo | C11: 171952.8196 | D11: 5125.204433 | E11: 204189.3817 | F11: 28
B12: Amazonas | C12: 10833.23643 | D12: 14318.14897 | E12: 100891.673 | F12: 6
B13: Bahia | C13: 20484 | D13: 3741 | E13: 44014.17921 | F13: 71
B14: Maranhão | C14: 189.6344169 | D14: 6622.939133 | E14: 41846.66321 | F14: 8
B15: Rio Grande do Norte | C15: 31960.48158 | D15: 1265.8536 | E15: 39922.46021 | F15: 69
B16: Sergipe | C16: 13621.09303 | D16: 72.94213333 | E16: 14079.88519 | F16: 17
B17: Alagoas | C17: 3912.332476 | D17: 1461.1641 | E17: 13102.77704 | F17: 12
B18: Paraná | C18: 1729.397307 | D18: 73.1107 | E18: 2189.249719 | F18: 2
B19: Ceará | C19: 904.1052565 | D19: 1.133666667 | E19: 911.2358044 | F19: 2
B20: Total | C20: =SUM(C9:C19) -> 3757486.934 | D20: =SUM(D9:D19) -> 181635.289 | E20: =SUM(E9:E19) -> 4899938.391 | F20: =SUM(F9:F19) -> 270
B22: Tabela 6. Distribuição da produção de petróleo e gás natural por bacia
B24: Bacia | C24: Petróleo (bbl/d) | D24: Gás Natural (Mm³/d) | E24: Produção Total (boe/d) | F24: Nº Campos produtores
B25: Santos | C25: 2916908.873 | D25: 138857.9638 | E25: 3790299.082 | F25: 27
B26: Campos | C26: 743057.9681 | D26: 14651.83047 | E26: 835215.1979 | F26: 32
B27: Solimões | C27: 10634.9812 | D27: 13645.84327 | E27: 96464.74264 | F27: 5
B28: Parnaíba | C28: 170.3875983 | D28: 6620.4497 | E28: 41811.75833 | F28: 7
B29: Potiguar | C29: 32864.58684 | D29: 1266.987267 | E29: 40833.69602 | F29: 71
B30: Recôncavo | C30: 20396.25601 | D30: 2922.021433 | E30: 38775.21564 | F30: 68
B31: Espírito Santo | C31: 13887.01781 | D31: 569.2041333 | E31: 17467.20366 | F31: 25
B32: Sergipe | C32: 13621.09303 | D32: 72.94213333 | E32: 14079.88519 | F32: 17
B33: Alagoas | C33: 3912.332476 | D33: 1461.1641 | E33: 13102.77704 | F33: 12
B34: Camamu | C34: 85.63219892 | D34: 763.7348333 | E34: 4889.379191 | F34: 1
B35: Amazonas | C35: 198.2552305 | D35: 672.3057 | E35: 4426.930345 | F35: 1
B36: Paraná | C36: 1729.397307 | D36: 73.1107 | E36: 2189.249719 | F36: 2
B37: Tucano Sul | C37: 1.908538014 | D37: 56.02373333 | E37: 354.2871762 | F37: 3
B38: Barreirinhas | C38: 19.2468186 | D38: 2.489433333 | E38: 34.90488127 | F38: 1
B39: Total | C39: =SUM(C25:C38) -> 3757487.936 | D39: =SUM(D25:D38) -> 181636.0707 | E39: 4899944.31 | F39: 272
B41: Tabela 7. Distribuição da produção de petróleo e gás natural por operador
C43: Operador | D43: Petróleo (bbl/d) | E43: Gás Natural (Mm³/d) | F43: Produção Total (boe/d)
B44: 1 | C44: PETROBRAS | D44: 3342161.452 | E44: 164738.0211 | F44: 4378332.305
B45: 2 | C45: EQUINOR BRASIL | D45: 96926.29141 | E45: 190.7393667 | F45: 98126.00579
B46: 3 | C46: PETRO RIO JAGUAR | D46: 61408.03688 | E46: 1011.3887 | F46: 67769.47964
B47: 4 | C47: ENEVA | D47: 368.6428289 | E47: 7292.7554 | F47: 46238.68867
B48: 5 | C48: ENAUTA ENERGIA | D48: 33359.50221 | E48: 294.8802 | F48: 35214.24264
B49: 6 | C49: SHELL BRASIL | D49: 30217.04059 | E49: 511.3873 | F49: 33433.56955
B50: 7 | C50: TRIDENT ENERGY | D50: 29382.64908 | E50: 506.1557333 | F50: 32566.27247
B51: 8 | C51: KAROON BRASIL | D51: 25055.134 | E51: 230.9013333 | F51: 26507.45952
B52: 9 | C52: 3R PETROLEUM OFF | D52: 21103.39146 | E52: 501.4193 | F52: 24257.22359
B53: 10 | C53: TOTALENERGIES EP | D53: 19096.51311 | E53: 772.8179333 | F53: 23957.39107
B54: 11 | C54: PETRORECÔNCAVO | D54: 13070.62521 | E54: 1616.8838 | F54: 23240.51711
B55: 12 | C55: 3R POTIGUAR | D55: 15955.42938 | E55: 104.7507333 | F55: 16614.29159
B56: 13 | C56: CARMO | D56: 13233.5793 | E56: 67.93846667 | F56: 13660.89935
B57: 14 | C57: ORIGEM ALAGOAS | D57: 3593.01245 | E57: 1451.890733 | F57: 12725.1293
B58: 15 | C58: PRIO BRAVO | D58: 11252.52334 | E58: 40.15513333 | F58: 11505.0915
B59: 16 | C59: PERENCO BRASIL | D59: 10483.09592 | E59: 54.4345 | F59: 10825.47858
B60: 17 | C60: 3R BAHIA | D60: 3234.065782 | E60: 961.1372333 | F60: 9279.436364
B61: 18 | C61: 3R RNCE | D61: 6962.024638 | E61: 224.7973667 | F61: 8375.957363
B62: 19 | C62: SEACREST NORTE CAP | D62: 6358.558043 | E62: 47.2731 | F62: 6655.89686
B63: 20 | C63: BW MAROMBA | D63: 5371.774492 | E63: 84.46876667 | F63: 5903.066985
B64: 21 | C64: SPE TIÊTA | D64: 3453.055581 | E64: 144.3294667 | F64: 4360.860504
B65: 22 | C65: PARANÁ XISTO | D65: 1729.235868 | E65: 66.44503333 | F65: 2147.162503
B66: 23 | C66: ALVOPETRO | D66: 28.45656806 | E66: 285.0895667 | F66: 1821.615775
B67: 24 | C67: RECÔNCAVO ENERGIA SP | D67: 5.114454171 | E67: 283.3978333 | F67: 1787.63298
B68: 25 | C68: SEACREST SPE CRICARÉ | D68: 1305.928091 | E68: 43.06393333 | F68: 1576.79205
B69: 26 | C69: PETROSYNERGY | D69: 404.323034 | E69: 12.53846667 | F69: 483.1876071
B70: 27 | C70: CAPIXABA ENERGIA | D70: 329.2145259 | E70: 7.767533333 | F70: 378.0708347
B71: 28 | C71: MANDACARU ENERGIA | D71: 348.1208561 | E71: 0.693 | F71: 352.4796944
B72: 29 | C72: IMETAME | D72: 282.2174849 | E72: 6.821666667 | F72: 325.1244721
B73: 30 | C73: PETROM | D73: 271.7789162 | E73: 3.845966667 | F73: 295.9693158
B74: 31 | C74: ORIGEM | D74: 1.908538014 | E74: 33.8313 | F74: 214.7009871
B75: 32 | C75: NÍON ENERGIA | D75: 139.844281 | E75: 5.907233333 | F75: 176.9996563
B76: 33 | C76: BGM | D76: 157.7907862 | E76: 0.2235 | F76: 159.1965587
B77: 34 | C77: SLIM DRILLING | D77: 139.9205973 | E77: 0.7003666667 | F77: 144.3257706
B78: 35 | C78: PETROBORN | D78: 0 | E78: 22.19243333 | F78: 139.5861891
B79: 36 | C79: VULTUR OIL | D79: 78.61319029 | E79: 1.322933333 | F79: 86.93418959
B80: 37 | C80: NOVA PETRÓLEO | D80: 60.49182835 | E80: 0.5393 | F80: 63.88392289
B81: 38 | C81: BARRA BONITA | D81: 0.1614384567 | E81: 6.665666667 | F81: 42.08721531
B82: 39 | C82: PERÍCIA | D82: 40.47283075 | E82: 0.176 | F82: 41.57983731
B83: 40 | C83: PETRO-VICTORY | D83: 24.48832693 | E83: 2.5061 | F83: 40.25121977
B84: 41 | C84: NTF | D84: 27.25332741 | E84: 0.007533333333 | F84: 27.30071064
B85: 42 | C85: ENERGIZZI ENERGIAS | D85: 21.52582642 | E85: 0.5434 | F85: 24.94370918
B86: 43 | C86: PHOENIX ÓLEO & GÁS | D86: 21.2828301 | E86: 0.0886 | F86: 21.84010726
B87: 44 | C87: CREATIVE ENERGY | D87: 0.1310377083 | E87: 3.077233333 | F87: 19.4862507
B88: 45 | C88: GUTO & CACAL | D88: 11.09522484 | E88: 0.023 | F88: 11.23989047
B89: 46 | C89: VIPETRO | D89: 6.898453948 | E89: 0.01746666667 | F89: 7.008315962
B90: 47 | C90: EPG BRASIL | D90: 3.260218183 | E90: 0.056 | F90: 3.612447543
B91: 48 | C91: BRASIL REFINARIAS | D91: 1.066332455 | E91: 0.002666666667 | F91: 1.083105282
B92: 49 | C92: NORD | D92: 0.9434715 | E92: 0.001233333333 | F92: 0.9512289323
B93: Total | D93: =SUM(D44:D92) -> 3757487.936 | E93: =SUM(E44:E92) -> 181636.0707 | F93: =SUM(F44:F92) -> 4899944.31
B97: Tabela 8. Distribuição da produção de petróleo e gás natural por concessionário
C99: Concessionário | D99: Petróleo (bbl/d) | E99: Gás Natural (Mm³/d) | F99: Produção Total (boe/d)
B100: 1 | C100: PETROBRAS | D100: 2286861.628 | E100: 113858.2641 | F100: 3003008.476
B101: 2 | C101: SHELL BRASIL | D101: 392600.0546 | E101: 20720.32176 | F101: 522926.9416
B102: 3 | C102: TOTALENERGIES EP | D102: 165089.8747 | E102: 9645.507106 | F102: 225758.2818
B103: 4 | C103: CNOOC PETROLEUM | D103: 96668.30317 | E103: 5873.539179 | F103: 133611.7486
B104: 5 | C104: PPSA | D104: 126685.1691 | E104: 120.5322517 | F104: 127443.294
B105: 6 | C105: PETROGAL BRASIL | D105: 97361.84308 | E105: 4528.526013 | F105: 125845.4113 | S105: Concessionário | T105: Petróleo (bbl/d) | U105: Gás Natural (Mm³/d) | V105: Produção Total (boe/d)
B106: 7 | C106: CNPC BRASIL | D106: 69548.40645 | E106: 4667.746485 | F106: 98907.64497 | S106: PETROBRAS | T106: 2233227.295 | U106: 107972.1896 | V106: 2912351.853
B107: 8 | C107: EQUINOR BRASIL | D107: 58155.77485 | E107: 114.44362 | F107: 58875.60347 | S107: SHELL BRASIL | T107: 385754.0421 | U107: 19753.49823 | V107: 509999.7928
B108: 9 | C108: PETRO RIO JAGUAR | D108: 52619.24672 | E108: 884.2752468 | F108: 58181.17001 | S108: TOTALENERGIES EP | T108: 164564.9904 | U108: 9120.011862 | V108: 221928.1322
B109: 10 | C109: PETRONAS | D109: 45981.71226 | E109: 1041.628934 | F109: 52533.36035 | S109: PPSA | T109: 109977.6931 | U109: 87.28719665 | V109: 110526.7129
B110: 11 | C110: REPSOL SINOPEC | D110: 37027.47428 | E110: 1707.186349 | F110: 47765.35205 | S110: PETROGAL BRASIL | T110: 96074.05227 | U110: 4433.981797 | V110: 123962.9553
B111: 12 | C111: ENEVA | D111: 368.6428289 | E111: 7292.7554 | F111: 46238.68867 | S111: CNOOC PETROLEUM | T111: 88579.22014 | U111: 5307.210197 | V111: 121960.5639
B112: 13 | C112: PRIO TIGRIS | D112: 38770.51657 | E112: 76.29574667 | F112: 39250.40232 | S112: CNPC BRASIL | T112: 62536.00821 | U112: 4151.041758 | V112: 88645.27217
B113: 14 | C113: TRIDENT ENERGY | D113: 29382.64908 | E113: 506.1557333 | F113: 32566.27247 | S113: EQUINOR BRASIL | T113: 57262.83291 | U113: 123.8154194 | V113: 58041.60837
B114: 15 | C114: ENAUTA ENERGIA | D114: 26726.13626 | E114: 579.584835 | F114: 30371.61475 | S114: PETRO RIO JAGUAR | T114: 48116.53803 | U114: 744.0658546 | V114: 52796.57088
B115: 16 | C115: KAROON BRASIL | D115: 25055.134 | E115: 230.9013333 | F115: 26507.45952 | S115: REPSOL SINOPEC | T115: 43528.88502 | U115: 1887.308933 | V115: 55399.69963
B116: 17 | C116: EQUINOR ENERGY | D116: 19551.97618 | E116: 910.7024417 | F116: 25280.1215 | S116: PETRONAS | T116: 40037.56104 | U116: 1028.66843 | V116: 46507.69001
B117: 18 | C117: PETRORECÔNCAVO | D117: 12631.1539 | E117: 1590.80319 | F117: 22637.00371 | S117: PRIO TIGRIS | T117: 38175.22194 | U117: 82.5436129 | V117: 38694.40558
B118: 19 | C118: QATARENERGY | D118: 17904.57835 | E118: 748.8388508 | F118: 22614.63244 | S118: EQUINOR ENERGY | T118: 25801.87166 | U118: 810.9907742 | V118: 30902.84954
B119: 20 | C119: 3R POTIGUAR | D119: 15955.42938 | E119: 104.7507333 | F119: 16614.29159 | S119: TRIDENT ENERGY | T119: 23723.36849 | U119: 509.4758065 | V119: 26927.87451
B120: 21 | C120: PRIO BRAVO | D120: 15804.05938 | E120: 93.54218323 | F120: 16392.42194 | S120: ENAUTA ENERGIA | T120: 18854.96912 | U120: 138.5992 | V120: 19726.73175
B121: 22 | C121: 3R PETROLEUM OFF | D121: 13213.41386 | E121: 455.670775 | F121: 16079.49646 | S121: PERENCO BRASIL | T121: 16850.99264 | U121: 76.67477419 | V121: 17333.2624
B122: 23 | C122: CARMO | D122: 13233.5793 | E122: 67.93846667 | F122: 13660.89935 | S122: QATARENERGY | T122: 16712.5601 | U122: 759.0351231 | V122: 21486.7468
B123: 24 | C123: ORIGEM ALAGOAS | D123: 3593.01245 | E123: 1451.890733 | F123: 12725.1293 | S123: PRIO BRAVO | T123: 16075.14964 | U123: 98.30411958 | V123: 16693.46387
B124: 25 | C124: PERENCO BRASIL | D124: 10483.09592 | E124: 54.4345 | F124: 10825.47858 | S124: 3R POTIGUAR | T124: 15840.07977 | U124: 96.329 | V124: 16445.97087
B125: 26 | C125: 3R BAHIA | D125: 3229.776174 | E125: 961.0030867 | F125: 9274.302998 | S125: CARMO | T125: 12104.05741 | U125: 54.55935484 | V125: 12447.22538
B126: 27 | C126: ONGC CAMPOS | D126: 8158.600961 | E126: 138.074571 | F126: 9027.063778 | S126: POTIGUAR E&P S.A. | T126: 8768.569318 | U126: 751.6467032 | V126: 13496.28427
B127: 28 | C127: 3R RNCE | D127: 6962.024638 | E127: 224.7973667 | F127: 8375.957363 | S127: KAROON BRASIL | T127: 8600.764309 | U127: 70.17306452 | V127: 9042.139552
B128: 29 | C128: NOVA TÉCNICA | D128: 7889.977604 | E128: 45.748525 | F128: 8177.727134 | S128: 3R PETROLEUM OFF | T128: 8259.450534 | U128: 435.5950968 | V128: 10999.26093
B129: 30 | C129: ENAUTA | D129: 6949.919337 | E129: 117.619079 | F129: 7689.720996 | S129: BW MAROMBA | T129: 7317.366521 | U129: 90.37403226 | V129: 7885.802012
B130: 31 | C130: WESTLAWN ENERGIA | D130: 6671.900443 | E130: 58.97604 | F130: 7042.848529 | S130: 3R RNCE | T130: 6947.708097 | U130: 196.6833871 | V130: 8184.809232
B131: 32 | C131: SEACREST NORTE CAP | D131: 6358.558043 | E131: 47.2731 | F131: 6655.89686 | S131: ONGC CAMPOS | T131: 6897.036801 | U131: 79.21407194 | V131: 7395.278263
B132: 33 | C132: BW MAROMBA | D132: 5371.774492 | E132: 84.46876667 | F132: 5903.066985 | S132: ENAUTA | T132: 5875.253572 | U132: 67.47865387 | V132: 6299.681483
B133: 34 | C133: SPE TIÊTA | D133: 3427.946607 | E133: 144.0601 | F133: 4334.057265 | S133: NOVA TÉCNICA | T133: 4896.074208 | U133: 30.53496774 | V133: 5088.133354
B134: 35 | C134: PARANÁ XISTO | D134: 1729.235868 | E134: 66.44503333 | F134: 2147.162503 | S134: WESTLAWN ENERGIA | T134: 4713.74228 | U134: 34.6498 | V134: 4931.682938
B135: 36 | C135: ALVOPETRO | D135: 28.45656806 | E135: 285.0895667 | F135: 1821.615775 | S135: SPE TIÊTA | T135: 3995.084871 | U135: 201.6052258 | V135: 5263.143437
B136: 37 | C136: RECÔNCAVO ENERGIA SP | D136: 5.114454171 | E136: 283.3978333 | F136: 1787.63298 | S136: ORIGEM ALAGOAS | T136: 3906.428528 | U136: 1501.411806 | V136: 13350.02352
B137: 38 | C137: SEACREST SPE CRICARÉ | D137: 1305.928091 | E137: 43.06393333 | F137: 1576.79205 | S137: 3R BAHIA | T137: 3511.023802 | U137: 993.8743161 | V137: 9762.304415
B138: 39 | C138: PRIO | D138: 1302.245198 | E138: 4.03376 | F138: 1327.616782 | S138: PARANÁ XISTO | T138: 2684.815949 | U138: 101.1342258 | V138: 3320.931014
B139: 40 | C139: SHB | D139: 610.0736634 | E139: 26.47415667 | F139: 776.5910788 | S139: PETRORECÔNCAVO | T139: 2106.631049 | U139: 71.71864516 | V139: 2557.7277
B140: 41 | C140: GAS BRIDGE | D140: 8.563219892 | E140: 76.37348333 | F140: 488.9379191 | S140: SPE MIRANGA | T140: 1600.559429 | U140: 759.3773871 | V140: 6376.898912
B141: 42 | C141: GEOPARK BRASIL | D141: 8.563219892 | E141: 76.37348333 | F141: 488.9379191 | S141: PRIO | T141: 1067.745404 | U141: 1.770580645 | V141: 1078.88202
B142: 43 | C142: PETROSYNERGY | D142: 404.323034 | E142: 12.53846667 | F142: 483.1876071 | S142: SEACREST NORTE CAP | T142: 963.340604 | U142: 19.46383871 | V142: 1085.764451
B143: 44 | C143: CAPIXABA ENERGIA | D143: 329.2145259 | E143: 7.767533333 | F143: 378.0708347 | S143: SHB | T143: 572.385107 | U143: 27.13552258 | V143: 743.0623883
B144: 45 | C144: 3R PESCADA | D144: 66.1335573 | E144: 47.30626833 | F144: 363.6809969 | S144: SEACREST SPE CRICARÉ | T144: 499.9774027 | U144: 28.37983871 | V144: 678.481196
B145: 46 | C145: PETROM | D145: 271.7789162 | E145: 3.845966667 | F145: 295.9693158 | S145: PETROSYNERGY | T145: 331.4297699 | U145: 10.33170968 | V145: 396.4142608
B146: 47 | C146: ORIGEM | D146: 1.908538014 | E146: 33.8313 | F146: 214.7009871 | S146: CAPIXABA ENERGIA | T146: 324.004142 | U146: 7.846774194 | V146: 373.3588608
B147: 48 | C147: MANDACARU ENERGIA | D147: 181.8081112 | E147: 0.4336 | F147: 184.5353728 | S147: ENEVA | T147: 225.9391056 | U147: 960.4322258 | V147: 6266.875324
B148: 49 | C148: NÍON ENERGIA | D148: 139.844281 | E148: 5.907233333 | F148: 176.9996563 | S148: MANDACARU ENERGIA | T148: 179.9900145 | U148: 0.4275483871 | V148: 182.6792127
B149: 50 | C149: IMETAME | D149: 141.1087424 | E149: 3.410833333 | F149: 162.5622361 | S149: PETROM | T149: 174.7828635 | U149: 3.253129032 | V149: 195.244427
B150: 51 | C150: IPI | D150: 141.1087424 | E150: 3.410833333 | F150: 162.5622361 | S150: IMETAME | T150: 173.8867684 | U150: 2.231935484 | V150: 187.9252186
B151: 52 | C151: PETROBORN | D151: 0 | E151: 22.19243333 | F151: 139.5861891 | S151: IPI | T151: 173.8867684 | U151: 2.231935484 | V151: 187.9252186
B152: 53 | C152: BGM | D152: 106.7589788 | E152: 0.138795 | F152: 107.631973 | S152: NÍON ENERGIA | T152: 137.8564034 | U152: 5.017741935 | V152: 169.4170468
B153: 54 | C153: VULTUR OIL | D153: 78.61319029 | E153: 1.322933333 | F153: 86.93418959 | S153: BGM | T153: 117.5603329 | U153: 0.1588 | V153: 118.5591548
B154: 55 | C154: GEOPAR - GEOSOL | D154: 79.82850737 | E154: 0.42022 | F154: 82.47161133 | S154: NOVA PETRÓLEO | T154: 73.53579189 | U154: 0.5862903226 | V154: 77.22344662
B155: 56 | C155: NOVA PETRÓLEO | D155: 60.49182835 | E155: 0.5393 | F155: 63.88392289 | S155: 3R PESCADA | T155: 70.81947657 | U155: 44.14346774 | V155: 348.4735014
B156: 57 | C156: SLIM DRILLING | D156: 60.09208996 | E156: 0.2801466667 | F156: 61.85415927 | S156: CAMPO PETRÓLEO | T156: 54.99614068 | U156: 0.0972 | V156: 55.60751022
B157: 58 | C157: CAMPO PETRÓLEO | D157: 51.03180735 | E157: 0.084705 | F157: 51.56458571 | S157: RECÔNCAVO E&P | T157: 50.36981297 | U157: 1.026548387 | V157: 56.82660728
B158: 59 | C158: BARRA BONITA | D158: 0.1614384567 | E158: 6.665666667 | F158: 42.08721531 | S158: ALVOPETRO | T158: 48.82008494 | U158: 267.4162258 | V158: 1730.817336
B159: 60 | C159: PETRO-VICTORY | D159: 24.48832693 | E159: 2.5061 | F159: 40.25121977 | S159: GEOPAR - GEOSOL | T159: 41.14655732 | U159: 0.2165806452 | V159: 42.50880843
B160: 61 | C160: ENERGIZZI ENERGIAS | D160: 21.52582642 | E160: 0.5434 | F160: 24.94370918 | S160: ENERGIZZI ENERGIAS | T160: 39.37644247 | U160: 0.8401290323 | V160: 44.66069446
B161: 62 | C161: PHOENIX ÓLEO & GÁS | D161: 21.2828301 | E161: 0.0886 | F161: 21.84010726 | S161: SLIM DRILLING | T161: 34.22951123 | U161: 0.1443870968 | V161: 35.13767864
B162: 63 | C162: ANDORINHA PETRÓLEO | D162: 20.23641537 | E162: 0.088 | F162: 20.78991865 | S162: PETRO-VICTORY | T162: 29.55399112 | U162: 2.792774194 | V162: 47.12001017
B163: 64 | C163: PERÍCIA | D163: 20.23641537 | E163: 0.088 | F163: 20.78991865 | S163: PHOENIX ÓLEO & GÁS | T163: 21.77593091 | U163: 0.07683870968 | V163: 22.2592318
B164: 65 | C164: CREATIVE ENERGY | D164: 0.1310377083 | E164: 3.077233333 | F164: 19.4862507 | S164: ANDORINHA PETRÓLEO | T164: 16.62234465 | U164: 0.07064516129 | V164: 17.0666893
B165: 66 | C165: NTF | D165: 13.6266637 | E165: 0.003766666667 | F165: 13.65035532 | S165: PERÍCIA | T165: 16.62234465 | U165: 0.07064516129 | V165: 17.0666893
B166: 67 | C166: GUTO & CACAL | D166: 11.09522484 | E166: 0.023 | F166: 11.23989047 | S166: VIPETRO | T166: 14.62583722 | U166: 0.03487096774 | V166: 14.84516898
B167: 68 | C167: VIPETRO | D167: 6.898453948 | E167: 0.01746666667 | F167: 7.008315962 | S167: GUTO & CACAL | T167: 12.60599662 | U167: 0.0264516129 | V167: 12.77237224
B168: 69 | C168: GEOFLUX | D168: 6.813331852 | E168: 0.001883333333 | F168: 6.825177661 | S168: NTF | T168: 11.26038308 | U168: 0.003112903226 | V168: 11.27996265
B169: 70 | C169: NEWO | D169: 6.813331852 | E169: 0.001883333333 | F169: 6.825177661 | S169: RECÔNCAVO ENERGIA SP | T169: 6.287781029 | U169: 188.8334516 | V169: 1194.014313
B170: 71 | C170: EPG BRASIL | D170: 3.260218183 | E170: 0.056 | F170: 3.612447543
B171: 72 | C171: BRASIL REFINARIAS | D171: 1.066332455 | E171: 0.002666666667 | F171: 1.083105282
B172: 73 | C172: NORD | D172: 0.9434715 | E172: 0.001233333333 | F172: 0.9512289323 | S172: GEOFLUX | T172: 5.630191538 | U172: 0.001556451613 | V172: 5.639981323
B173: Total | D173: =SUM(D100:D172) -> 3733564.148 | E173: =SUM(E100:E172) -> 180166.1033 | F173: =SUM(F100:F172) -> 4866774.706 | S173: SONANGOL GUANAMBI | T173: 4.673004195 | U173: 0.1461354839 | V173: 5.592168622
S174: CREATIVE ENERGY | T174: 4.22675232 | U174: 3.224096774 | V174: 24.50570845
B175: Tabela 9. Movimentação de gás natural por destinação (Mm³/d) | S175: BRASIL REFINARIAS | T175: 1.047557711 | U175: 0.002612903226 | V175: 1.063992375
S176: NORD | T176: 1.014485484 | U176: 0.001612903226 | V176: 1.024630339
B177: Bacia | C177: Consumo Interno | D177: Queima | E177: Disponível | F177: Injeção | G177: Injeção descontando CO2 | H177: Produção | I177: Produção descontando CO2 | S177: BARRA BONITA | T177: 0.2170998935 | U177: 5.843096774 | V177: 36.96906841
B178: Santos | C178: 11112.39707 | D178: 4443.3782 | E178: 33511.1351 | F178: 89791.0534 | G178: 61046.32664 | H178: 138857.9638 | I178: 105150.1908 | S178: PETROBORN | T178: 0 | U178: 21.87454839 | V178: 137.5867532
B179: Campos | C179: 5109.889067 | D179: 1234.570933 | E179: 8307.370467 | F179: 0 | G179: 0 | H179: 14651.83047 | I179: 14354.14578 | S179: ORIGEM | T179: 0 | U179: 3.937483871 | V179: 24.76602543
B180: Solimões | C180: 424.5719333 | D180: 50.95816667 | E180: 7024.2802 | F180: 6146.032967 | G180: 6144.258409 | H180: 13645.84327 | I180: 13622.8652
B181: Parnaíba | C181: 67.6492 | D181: 18.83776667 | E181: 6533.962733 | F181: 0 | G181: 0 | H181: 6620.4497 | I181: 6620.4497
B182: Recôncavo | C182: 119.0806667 | D182: 78.0232 | E182: 2389.577467 | F182: 335.3401 | G182: 334.5991507 | H182: 2922.021433 | I182: 2904.767312
B183: Alagoas | C183: 22.08963333 | D183: 11.06233333 | E183: 1428.012133 | F183: 0 | G183: 0 | H183: 1461.1641 | I183: 1451.782099
B184: Potiguar | C184: 315.8676667 | D184: 72.58426667 | E184: 878.5353333 | F184: 0 | G184: 0 | H184: 1266.987267 | I184: 1262.038472
B185: Camamu | C185: 21.69616667 | D185: 2.2925 | E185: 739.7461667 | F185: 0 | G185: 0 | H185: 763.7348333 | I185: 760.0689061
B186: Amazonas | C186: 1.036433333 | D186: 3.9285 | E186: 667.3407667 | F186: 0 | G186: 0 | H186: 672.3057 | I186: 672.3057
B187: Espírito Santo | C187: 322.2232333 | D187: 44.9454 | E187: 202.0355 | F187: 0 | G187: 0 | H187: 569.2041333 | I187: 563.0858839
B188: Paraná | C188: 43.8278 | D188: 1.666666667 | E188: 27.61623333 | F188: 0 | G188: 0 | H188: 73.1107 | I188: 73.09403583
B189: Sergipe | C189: 5.651033333 | D189: 52.8256 | E189: 0.3356666667 | F189: 14.12983333 | G189: 14.12983333 | H189: 72.94213333 | I189: 72.91931048
B190: Tucano Sul | C190: 2.048933333 | D190: 0.001133333333 | E190: 53.97366667 | F190: 0 | G190: 0 | H190: 56.02373333 | I190: 55.98005396
B191: Barreirinhas | C191: 0 | D191: 2.489433333 | E191: 0 | F191: 0 | G191: 0 | H191: 2.489433333 | I191: 2.489433333
B192: Total | C192: =SUM(C178:C191) -> 17568.02883 | D192: =SUM(D178:D191) -> 6017.5641 | E192: =SUM(E178:E191) -> 61763.92143 | F192: =SUM(F178:F191) -> 96286.5563 | G192: =SUM(G178:G191) -> 67539.31403 | H192: =SUM(H178:H191) -> 181636.0707 | I192: =SUM(I178:I191) -> 147566.1826
B194: Tabela 10. Distribuição da produção dos campos do Pré-sal¹
B196: Campo | C196: Petróleo (bbl/d) Pré Sal | D196: Petróleo (bbl/d) Pós Sal | E196: Gás natural (Mm³/d) Pré Sal | F196: Gás natural (Mm³/d) Pós Sal | G196: Produção (boe/d) Pré Sal | H196: Produção (boe/d) Pós Sal
B197: Tupi | C197: 794597.9888 | D197: 0 | E197: 40190.11387 | F197: 0 | G197: 1047386.169 | H197: 0
B198: Búzios | C198: 744647.9862 | D198: 0 | E198: 32741.11273 | F198: 0 | G198: 950583.3645 | H198: 0
B199: Mero | C199: 524922.6693 | D199: 0 | E199: 34619.5379 | F199: 0 | G199: 742672.985 | H199: 0
B200: Sépia | C200: 126784.3371 | D200: 0 | E200: 5217.393333 | F200: 0 | G200: 159600.7499 | H200: 0
B201: Sapinhoá | C201: 114744.2595 | D201: 0 | E201: 5591.1393 | F201: 0 | G201: 149911.4634 | H201: 0
B202: Atapu | C202: 114630.1689 | D202: 0 | E202: 4049.829567 | F202: 0 | G202: 140102.8274 | H202: 0
B203: Berbigão | C203: 120405.9282 | D203: 0 | E203: 2821.651467 | F203: 0 | G203: 138153.5798 | H203: 0
B204: Jubarte | C204: 89840.06336 | D204: 38009.90343 | E204: 3590.5883 | F204: 454.0263667 | G204: 112424.1816 | H204: 40865.64301
B205: Itapu | C205: 82483.50641 | D205: 0 | E205: 1325.024967 | F205: 0 | G205: 90817.6617 | H205: 0
B206: Itapu_Eco | C206: 77034.37564 | D206: 0 | E206: 1237.489433 | F206: 0 | G206: 84817.94905 | H206: 0
B207: Sul de Tupi | C207: 47485.82884 | D207: 0 | E207: 2234.906367 | F207: 0 | G207: 61542.96526 | H207: 0
B208: Oeste de Atapu | C208: 23804.29919 | D208: 0 | E208: 840.9946667 | F208: 0 | G208: 29093.99586 | H208: 0
B209: Anc_Mero | C209: 19038.64623 | D209: 0 | E209: 1255.6309 | F209: 0 | G209: 26936.32602 | H209: 0
B210: Lapa | C210: 19096.51311 | D210: 0 | E210: 772.8179333 | F210: 0 | G210: 23957.39107 | H210: 0
B211: Marlim Leste | C211: 21160.84804 | D211: 46678.80576 | E211: 372.4790333 | F211: 535.6641667 | G211: 23503.67039 | H211: 50048.03159
B212: Sul de Berbigão | C212: 15575.16633 | D212: 0 | E212: 1174.476833 | F212: 0 | G212: 22962.40246 | H212: 0
B213: Sépia Leste | C213: 17405.1073 | D213: 0 | E213: 716.2500667 | F213: 0 | G213: 21910.18413 | H213: 0
B214: Marlim | C214: 8487.729383 | D214: 56526.7206 | E214: 255.7106333 | F214: 947.1221333 | G214: 10096.10068 | H214: 62483.93886
B215: Tambuatá | C215: 4806.249917 | D215: 0 | E215: 211.3239667 | F215: 0 | G215: 6135.437516 | H215: 0
... 8 more rows

Sheet 3. Ranking
B2: 3. RANKING DA PRODUÇÃO
B6: Tabela 11. Os 30 poços com maior produção de petróleo (bbl/d)
C8: Poço | D8: Campo | E8: Bacia | F8: Localização | G8: Petróleo (bbl/d)
B9: 1 | C9: 7-BUZ-74D-RJS | D9: Búzios / Búzios_Eco / Tambuatá | E9: Santos | F9: Mar | G9: 50542.38298
B10: 2 | C10: 7-BUZ-70D-RJS | D10: Búzios / Búzios_Eco / Tambuatá | E10: Santos | F10: Mar | G10: 47620.87547
B11: 3 | C11: 9-BRSA-1254-RJS | D11: Sépia / Sépia Leste / Sépia_Eco | E11: Santos | F11: Mar | G11: 47346.8469
B12: 4 | C12: 7-BUZ-23-RJS | D12: Búzios / Búzios_Eco / Tambuatá | E12: Santos | F12: Mar | G12: 46060.44196
B13: 5 | C13: 7-BUZ-12-RJS | D13: Búzios / Búzios_Eco / Tambuatá | E13: Santos | F13: Mar | G13: 45551.04911
B14: 6 | C14: 3-BRSA-1322-RJS | D14: Anc_Mero / Mero | E14: Santos | F14: Mar | G14: 43821.89753
B15: 7 | C15: 7-MRO-18D-RJS | D15: Anc_Mero / Mero | E15: Santos | F15: Mar | G15: 43333.59211
B16: 8 | C16: 9-ATP-1-RJS | D16: Atapu / Atapu_Eco / Anc_Norte_Atapu / Oeste De Atapu | E16: Santos | F16: Mar | G16: 43217.15054
B17: 9 | C17: 7-MRO-16D-RJS | D17: Anc_Mero / Mero | E17: Santos | F17: Mar | G17: 42739.40949
B18: 10 | C18: 7-ATP-6-RJS | D18: Atapu / Atapu_Eco / Anc_Norte_Atapu / Oeste De Atapu | E18: Santos | F18: Mar | G18: 42315.3071
B19: 11 | C19: 7-BUZ-18-RJS | D19: Búzios / Búzios_Eco / Tambuatá | E19: Santos | F19: Mar | G19: 42116.21784
B20: 12 | C20: 7-BUZ-25-RJS | D20: Búzios / Búzios_Eco / Tambuatá | E20: Santos | F20: Mar | G20: 40925.16474
B21: 13 | C21: 7-ITP-5D-RJS | D21: Itapu / Itapu_Eco | E21: Santos | F21: Mar | G21: 40838.22699
B22: 14 | C22: 9-ITP-1-RJS | D22: Itapu / Itapu_Eco | E22: Santos | F22: Mar | G22: 40836.06119
B23: 15 | C23: 7-MRO-7A-RJS | D23: Anc_Mero / Mero | E23: Santos | F23: Mar | G23: 39995.6692
B24: 16 | C24: 7-MRO-17A-RJS | D24: Anc_Mero / Mero | E24: Santos | F24: Mar | G24: 39907.86869
B25: 17 | C25: 7-BUZ-30-RJS | D25: Búzios / Búzios_Eco / Tambuatá | E25: Santos | F25: Mar | G25: 39578.16251
B26: 18 | C26: 3-BRSA-1255-RJS | D26: Anc_Mero / Mero | E26: Santos | F26: Mar | G26: 38622.80704
B27: 19 | C27: 9-BUZ-3-RJS | D27: Búzios / Búzios_Eco / Tambuatá | E27: Santos | F27: Mar | G27: 37455.60239
B28: 20 | C28: 9-BUZ-4-RJS | D28: Búzios / Búzios_Eco / Tambuatá | E28: Santos | F28: Mar | G28: 35867.70149
B29: 21 | C29: 7-MRO-27D-RJS | D29: Anc_Mero / Mero | E29: Santos | F29: Mar | G29: 35588.76665
B30: 22 | C30: 3-BRSA-1201-RJS | D30: Sépia / Sépia Leste / Sépia_Eco | E30: Santos | F30: Mar | G30: 33094.97482
B31: 23 | C31: 7-BUZ-14DA-RJS | D31: Búzios / Búzios_Eco / Tambuatá | E31: Santos | F31: Mar | G31: 33039.82514
B32: 24 | C32: 7-BUZ-45DA-RJS | D32: Búzios / Búzios_Eco / Tambuatá | E32: Santos | F32: Mar | G32: 32495.28442
B33: 25 | C33: 7-BUZ-33-RJS | D33: Búzios / Búzios_Eco / Tambuatá | E33: Santos | F33: Mar | G33: 32328.84304
B34: 26 | C34: 7-MRO-24D-RJS | D34: Anc_Mero / Mero | E34: Santos | F34: Mar | G34: 31720.62345
B35: 27 | C35: 7-TUP-121DA-RJS | D35: Tupi | E35: Santos | F35: Mar | G35: 31188.77829
B36: 28 | C36: 7-SEP-6-RJS | D36: Sépia / Sépia Leste / Sépia_Eco | E36: Santos | F36: Mar | G36: 30644.96677
B37: 29 | C37: 7-BUZ-29D-RJS | D37: Búzios / Búzios_Eco / Tambuatá | E37: Santos | F37: Mar | G37: 29824.78351
B38: 30 | C38: 7-ITP-4-RJS | D38: Itapu / Itapu_Eco | E38: Santos | F38: Mar | G38: 29714.73553
B41: Tabela 12. Os 30 poços com maior produção de gás natural (Mm³/d)
C43: Poço | D43: Campo | E43: Bacia | F43: Localização | G43: Gás natural (Mm³/d)
B44: 1 | C44: 3-BRSA-1322-RJS | D44: Anc_Mero / Mero | E44: Santos | F44: Mar | G44: 2923.8544
B45: 2 | C45: 7-MRO-18D-RJS | D45: Anc_Mero / Mero | E45: Santos | F45: Mar | G45: 2869.625567
B46: 3 | C46: 7-MRO-16D-RJS | D46: Anc_Mero / Mero | E46: Santos | F46: Mar | G46: 2800.0053
B47: 4 | C47: 7-MRO-17A-RJS | D47: Anc_Mero / Mero | E47: Santos | F47: Mar | G47: 2649.5871
B48: 5 | C48: 7-MRO-7A-RJS | D48: Anc_Mero / Mero | E48: Santos | F48: Mar | G48: 2641.467467
B49: 6 | C49: 3-BRSA-1255-RJS | D49: Anc_Mero / Mero | E49: Santos | F49: Mar | G49: 2541.8648
B50: 7 | C50: 7-MRO-27D-RJS | D50: Anc_Mero / Mero | E50: Santos | F50: Mar | G50: 2361.848867
B51: 8 | C51: 9-BUZ-3-RJS | D51: Búzios / Búzios_Eco / Tambuatá | E51: Santos | F51: Mar | G51: 2274.922267
B52: 9 | C52: 7-MRO-24D-RJS | D52: Anc_Mero / Mero | E52: Santos | F52: Mar | G52: 2127.036133
B53: 10 | C53: 7-RO-111HP-RJS | D53: Roncador | E53: Campos | F53: Mar | G53: 2018.012833
B54: 11 | C54: 7-BUZ-74D-RJS | D54: Búzios / Búzios_Eco / Tambuatá | E54: Santos | F54: Mar | G54: 2007.3109
B55: 12 | C55: 7-BUZ-23-RJS | D55: Búzios / Búzios_Eco / Tambuatá | E55: Santos | F55: Mar | G55: 1997.251167
B56: 13 | C56: 3-BRSA-1355D-RJS | D56: Anc_Mero / Mero | E56: Santos | F56: Mar | G56: 1935.898467
B57: 14 | C57: 7-BUZ-70D-RJS | D57: Búzios / Búzios_Eco / Tambuatá | E57: Santos | F57: Mar | G57: 1917.6253
B58: 15 | C58: 9-LL-2-RJS | D58: Tupi | E58: Santos | F58: Mar | G58: 1913.900367
B59: 16 | C59: 7-MRO-29D-RJS | D59: Anc_Mero / Mero | E59: Santos | F59: Mar | G59: 1908.8524
B60: 17 | C60: 7-MRO-10B-RJS | D60: Anc_Mero / Mero | E60: Santos | F60: Mar | G60: 1855.600133
B61: 18 | C61: 7-BUZ-12-RJS | D61: Búzios / Búzios_Eco / Tambuatá | E61: Santos | F61: Mar | G61: 1840.4445
B62: 19 | C62: 7-BUZ-29D-RJS | D62: Búzios / Búzios_Eco / Tambuatá | E62: Santos | F62: Mar | G62: 1840.441033
B63: 20 | C63: 3-BRSA-1345-RJS | D63: Anc_Mero / Mero | E63: Santos | F63: Mar | G63: 1830.678167
B64: 21 | C64: 7-BUZ-18-RJS | D64: Búzios / Búzios_Eco / Tambuatá | E64: Santos | F64: Mar | G64: 1812.196833
B65: 22 | C65: 1-BRSA-976-RJS | D65: Sépia / Sépia Leste / Sépia_Eco | E65: Santos | F65: Mar | G65: 1784.154233
B66: 23 | C66: 3-BRSA-1201-RJS | D66: Sépia / Sépia Leste / Sépia_Eco | E66: Santos | F66: Mar | G66: 1741.2345
B67: 24 | C67: 7-MRO-3-RJS | D67: Anc_Mero / Mero | E67: Santos | F67: Mar | G67: 1726.457667
B68: 25 | C68: 7-MRO-33-RJS | D68: Anc_Mero / Mero | E68: Santos | F68: Mar | G68: 1696.507167
B69: 26 | C69: 9-LL-20D-RJS | D69: Tupi | E69: Santos | F69: Mar | G69: 1691.610967
B70: 27 | C70: 9-BUZ-4-RJS | D70: Búzios / Búzios_Eco / Tambuatá | E70: Santos | F70: Mar | G70: 1622.096067
B71: 28 | C71: 7-BUZ-30-RJS | D71: Búzios / Búzios_Eco / Tambuatá | E71: Santos | F71: Mar | G71: 1585.064333
B72: 29 | C72: 7-BUZ-25-RJS | D72: Búzios / Búzios_Eco / Tambuatá | E72: Santos | F72: Mar | G72: 1569.855533
B73: 30 | C73: 7-TUP-121DA-RJS | D73: Tupi | E73: Santos | F73: Mar | G73: 1551.704
B76: Tabela 13. Os 30 poços com maior produção total (boe/d)
C78: Poço | D78: Campo | E78: Bacia | F78: Localização | G78: Produção (boe/d)
B79: 1 | C79: 7-BUZ-74D-RJS | D79: Búzios / Búzios_Eco / Tambuatá | E79: Santos | F79: Mar | G79: 63167.98715
B80: 2 | C80: 3-BRSA-1322-RJS | D80: Anc_Mero / Mero | E80: Santos | F80: Mar | G80: 62212.38617
B81: 3 | C81: 7-MRO-18D-RJS | D81: Anc_Mero / Mero | E81: Santos | F81: Mar | G81: 61382.9917
B82: 4 | C82: 7-MRO-16D-RJS | D82: Anc_Mero / Mero | E82: Santos | F82: Mar | G82: 60350.91082
B83: 5 | C83: 7-BUZ-70D-RJS | D83: Búzios / Búzios_Eco / Tambuatá | E83: Santos | F83: Mar | G83: 59682.37426
B84: 6 | C84: 7-BUZ-23-RJS | D84: Búzios / Búzios_Eco / Tambuatá | E84: Santos | F84: Mar | G84: 58622.77232
B85: 7 | C85: 7-BUZ-12-RJS | D85: Búzios / Búzios_Eco / Tambuatá | E85: Santos | F85: Mar | G85: 57127.09533
B86: 8 | C86: 7-MRO-7A-RJS | D86: Anc_Mero / Mero | E86: Santos | F86: Mar | G86: 56609.99768
B87: 9 | C87: 7-MRO-17A-RJS | D87: Anc_Mero / Mero | E87: Santos | F87: Mar | G87: 56573.26813
B88: 10 | C88: 9-BRSA-1254-RJS | D88: Sépia / Sépia Leste / Sépia_Eco | E88: Santos | F88: Mar | G88: 55986.9572
B89: 11 | C89: 3-BRSA-1255-RJS | D89: Anc_Mero / Mero | E89: Santos | F89: Mar | G89: 54610.65368
B90: 12 | C90: 7-BUZ-18-RJS | D90: Búzios / Búzios_Eco / Tambuatá | E90: Santos | F90: Mar | G90: 53514.5916
B91: 13 | C91: 9-ATP-1-RJS | D91: Atapu / Atapu_Eco / Anc_Norte_Atapu / Oeste De Atapu | E91: Santos | F91: Mar | G91: 52478.74732
B92: 14 | C92: 7-ATP-6-RJS | D92: Atapu / Atapu_Eco / Anc_Norte_Atapu / Oeste De Atapu | E92: Santos | F92: Mar | G92: 52030.91998
B93: 15 | C93: 9-BUZ-3-RJS | D93: Búzios / Búzios_Eco / Tambuatá | E93: Santos | F93: Mar | G93: 51764.43121
B94: 16 | C94: 7-BUZ-25-RJS | D94: Búzios / Búzios_Eco / Tambuatá | E94: Santos | F94: Mar | G94: 50799.25777
B95: 17 | C95: 7-MRO-27D-RJS | D95: Anc_Mero / Mero | E95: Santos | F95: Mar | G95: 50444.34727
B96: 18 | C96: 7-BUZ-30-RJS | D96: Búzios / Búzios_Eco / Tambuatá | E96: Santos | F96: Mar | G96: 49547.91601
B97: 19 | C97: 9-BUZ-4-RJS | D97: Búzios / Búzios_Eco / Tambuatá | E97: Santos | F97: Mar | G97: 46070.37755
B98: 20 | C98: 7-MRO-24D-RJS | D98: Anc_Mero / Mero | E98: Santos | F98: Mar | G98: 45099.27659
B99: 21 | C99: 7-ITP-5D-RJS | D99: Itapu / Itapu_Eco | E99: Santos | F99: Mar | G99: 44662.51533
B100: 22 | C100: 9-ITP-1-RJS | D100: Itapu / Itapu_Eco | E100: Santos | F100: Mar | G100: 44465.59731
B101: 23 | C101: 3-BRSA-1201-RJS | D101: Sépia / Sépia Leste / Sépia_Eco | E101: Santos | F101: Mar | G101: 44047.00899
B102: 24 | C102: 3-BRSA-1355D-RJS | D102: Anc_Mero / Mero | E102: Santos | F102: Mar | G102: 41735.14152
B103: 25 | C103: 7-BUZ-14DA-RJS | D103: Búzios / Búzios_Eco / Tambuatá | E103: Santos | F103: Mar | G103: 41657.49403
B104: 26 | C104: 7-MRO-29D-RJS | D104: Anc_Mero / Mero | E104: Santos | F104: Mar | G104: 41637.84613
B105: 27 | C105: 7-BUZ-29D-RJS | D105: Búzios / Búzios_Eco / Tambuatá | E105: Santos | F105: Mar | G105: 41400.80793
B106: 28 | C106: 7-TUP-121DA-RJS | D106: Tupi | E106: Santos | F106: Mar | G106: 40948.70163
B107: 29 | C107: 7-BUZ-45DA-RJS | D107: Búzios / Búzios_Eco / Tambuatá | E107: Santos | F107: Mar | G107: 40411.43235
B108: 30 | C108: 7-BUZ-33-RJS | D108: Búzios / Búzios_Eco / Tambuatá | E108: Santos | F108: Mar | G108: 40212.79847
B110: Tabela 14. Os 30 poços terrestres com maior produção de petróleo (bbl/d)
C112: Poço | D112: Campo | E112: Bacia | F112: Localização | G112: Petróleo (bbl/d)
B113: 1 | C113: 7-TIE-11DP-BA | D113: Tiê | E113: Recôncavo | F113: Terra | G113: 1009.846817
B114: 2 | C114: 1-BRSA-769-AM | D114: Arara Azul | E114: Solimões | F114: Terra | G114: 932.3947253
B115: 3 | C115: 7-TIE-13D-BA | D115: Tiê | E115: Recôncavo | F115: Terra | G115: 890.9220244
B116: 4 | C116: 3-ORGM-2D-AL | D116: Pilar | E116: Alagoas | F116: Terra | G116: 642.4682396
B117: 5 | C117: 7-TIE-14D-BA | D117: Tiê | E117: Recôncavo | F117: Terra | G117: 539.610138
B118: 6 | C118: 7-PIR-272D-AL | D118: Pilar | E118: Alagoas | F118: Terra | G118: 516.240349
B119: 7 | C119: 7-CNC-9-ES | D119: Cancã | E119: Espírito Santo | F119: Terra | G119: 491.2496759
B120: 8 | C120: 7-LUC-42HP-AM | D120: Leste Do Urucu | E120: Solimões | F120: Terra | G120: 457.2197072
B121: 9 | C121: 3-BRSA-1218-AM | D121: Sudoeste Urucu | E121: Solimões | F121: Terra | G121: 405.8430715
B122: 10 | C122: 7-LUC-50HP-AM | D122: Leste Do Urucu | E122: Solimões | F122: Terra | G122: 356.2095518
B123: 11 | C123: 9-RUC-97DP-AM | D123: Rio Urucu | E123: Solimões | F123: Terra | G123: 332.3109994
B124: 12 | C124: 9-RUC-75D-AM | D124: Rio Urucu | E124: Solimões | F124: Terra | G124: 327.7303404
B125: 13 | C125: 7-TIE-1D-BA | D125: Tiê | E125: Recôncavo | F125: Terra | G125: 321.8864779
B126: 14 | C126: 7-LUC-88HP-AM | D126: Leste Do Urucu | E126: Solimões | F126: Terra | G126: 315.5063043
B127: 15 | C127: 7-LUC-25-AM | D127: Leste Do Urucu | E127: Solimões | F127: Terra | G127: 277.3208678
B128: 16 | C128: 7-TIE-2DB-BA | D128: Tiê | E128: Recôncavo | F128: Terra | G128: 274.4780833
B129: 17 | C129: 4-SMT-3-AM | D129: Araracanga | E129: Solimões | F129: Terra | G129: 273.8103152
B130: 18 | C130: 7-MA-34D-RN | D130: Macau | E130: Potiguar | F130: Terra | G130: 249.7461311
B131: 19 | C131: 3-LUC-6-AM | D131: Leste Do Urucu | E131: Solimões | F131: Terra | G131: 241.6872072
B132: 20 | C132: 7-LUC-63HP-AM | D132: Leste Do Urucu | E132: Solimões | F132: Terra | G132: 240.0879182
B133: 21 | C133: 7-RIP-6-ES | D133: Rio Ipiranga | E133: Espírito Santo | F133: Terra | G133: 227.0264987
B134: 22 | C134: 7-LV-59-RN | D134: Livramento | E134: Potiguar | F134: Terra | G134: 226.0962358
B135: 23 | C135: 7-RUC-59DP-AM | D135: Rio Urucu | E135: Solimões | F135: Terra | G135: 216.1728026
B136: 24 | C136: 7-LUC-57HP-AM | D136: Leste Do Urucu | E136: Solimões | F136: Terra | G136: 213.7262762
B137: 25 | C137: 7-TIE-4HE-BA | D137: Tiê | E137: Recôncavo | F137: Terra | G137: 212.7238901
B138: 26 | C138: 1-SMT-2-AM | D138: Araracanga | E138: Solimões | F138: Terra | G138: 211.9265519
B139: 27 | C139: 7-RB-2-SE | D139: Rabo Branco | E139: Sergipe | F139: Terra | G139: 210.4637517
B140: 28 | C140: 7-LUC-29H-AM | D140: Leste Do Urucu | E140: Solimões | F140: Terra | G140: 207.9136531
B141: 29 | C141: 7-LUC-24DP-AM | D141: Leste Do Urucu | E141: Solimões | F141: Terra | G141: 207.5836477
B142: 30 | C142: 7-BR-47-RN | D142: Brejinho Rn | E142: Potiguar | F142: Terra | G142: 202.7396554
B145: Tabela 15. Os 30 poços terrestres com maior produção de gás natural (Mm³/d)
C147: Poço | D147: Campo | E147: Bacia | F147: Localização | G147: Gás Natural (Mm³/d)
B148: 1 | C148: 9-RUC-75D-AM | D148: Rio Urucu | E148: Solimões | F148: Terra | G148: 579.5987
B149: 2 | C149: 7-LUC-42HP-AM | D149: Leste Do Urucu | E149: Solimões | F149: Terra | G149: 542.9900333
B150: 3 | C150: 9-RUC-97DP-AM | D150: Rio Urucu | E150: Solimões | F150: Terra | G150: 494.008
B151: 4 | C151: 7-AZU-3-AM | D151: Azulão | E151: Amazonas | F151: Terra | G151: 415.5789
B152: 5 | C152: 7-RUC-58HP-AM | D152: Rio Urucu | E152: Solimões | F152: Terra | G152: 404.0613667
B153: 6 | C153: 4-SMT-3-AM | D153: Araracanga | E153: Solimões | F153: Terra | G153: 368.99
B154: 7 | C154: 7-RUC-96HP-AM | D154: Rio Urucu | E154: Solimões | F154: Terra | G154: 359.7476333
B155: 8 | C155: 1-SMT-2-AM | D155: Araracanga | E155: Solimões | F155: Terra | G155: 356.0686
B156: 9 | C156: 7-LUC-57HP-AM | D156: Leste Do Urucu | E156: Solimões | F156: Terra | G156: 345.4935333
B157: 10 | C157: 1-BRSA-769-AM | D157: Arara Azul | E157: Solimões | F157: Terra | G157: 334.4418667
B158: 11 | C158: 1-OGX-107-MA | D158: Gavião Caboclo | E158: Parnaíba | F158: Terra | G158: 326.6220333
B159: 12 | C159: 7-LUC-17-AM | D159: Leste Do Urucu | E159: Solimões | F159: Terra | G159: 326.1664333
B160: 13 | C160: 7-RUC-92DP-AM | D160: Rio Urucu | E160: Solimões | F160: Terra | G160: 322.8051333
B161: 14 | C161: 7-RUC-83H-AM | D161: Rio Urucu | E161: Solimões | F161: Terra | G161: 320.5071333
B162: 15 | C162: 7-RUC-62HP-AM | D162: Rio Urucu | E162: Solimões | F162: Terra | G162: 316.7006667
B163: 16 | C163: 7-GVP-3D-MA | D163: Gavião Preto | E163: Parnaíba | F163: Terra | G163: 310.6998333
B164: 17 | C164: 7-LUC-73HP-AM | D164: Leste Do Urucu | E164: Solimões | F164: Terra | G164: 309.5936333
B165: 18 | C165: 9-RUC-104DP-AM | D165: Rio Urucu | E165: Solimões | F165: Terra | G165: 294.0877667
B166: 19 | C166: 7-LUC-50HP-AM | D166: Leste Do Urucu | E166: Solimões | F166: Terra | G166: 282.5789333
B167: 20 | C167: 7-GVP-2D-MA | D167: Gavião Preto | E167: Parnaíba | F167: Terra | G167: 274.0413
B168: 21 | C168: 3-LUC-8-AM | D168: Leste Do Urucu | E168: Solimões | F168: Terra | G168: 272.4302
B169: 22 | C169: 1-IMT-1-AM | D169: Leste Do Urucu | E169: Solimões | F169: Terra | G169: 272.3155
B170: 23 | C170: 3-PGN-5-MA | D170: Gavião Caboclo | E170: Parnaíba | F170: Terra | G170: 269.5338667
B171: 24 | C171: 3-RUC-8-AM | D171: Rio Urucu | E171: Solimões | F171: Terra | G171: 266.2112333
B172: 25 | C172: 7-RUC-79HP-AM | D172: Rio Urucu | E172: Solimões | F172: Terra | G172: 260.84
B173: 26 | C173: 4-RUC-10-AM | D173: Rio Urucu | E173: Solimões | F173: Terra | G173: 257.7005667
B174: 27 | C174: 7-GVP-5D-MA | D174: Gavião Preto | E174: Parnaíba | F174: Terra | G174: 252.8538667
B175: 28 | C175: 7-GVR-18-MA | D175: Gavião Real | E175: Parnaíba | F175: Terra | G175: 252.7074667
B176: 29 | C176: 7-LUC-31HP-AM | D176: Leste Do Urucu | E176: Solimões | F176: Terra | G176: 249.9924667
B177: 30 | C177: 3-PGN-4-MA | D177: Gavião Branco | E177: Parnaíba | F177: Terra | G177: 249.5
B180: Tabela 16. As 30 instalações com maior produção de petróleo (bbl/d)
C182: Instalação | D182: Petróleo (bbl/d) | E182: Nº poços produtores | F182: Campos produtores
B183: 1 | C183: FPSO Guanabara | D183: 183786.8301 | E183: 6 | F183: Anc_Mero / Mero
B184: 2 | C184: FPSO Sepetiba | D184: 177882.3147 | E184: 6 | F184: Anc_Mero / Mero
B185: 3 | C185: Petrobras 71 | D185: 159517.8821 | E185: 5 | F185: Itapu / Itapu_Eco
B186: 4 | C186: Petrobras 77 | D186: 156999.9455 | E186: 5 | F186: Búzios / Búzios_Eco / Tambuatá
B187: 5 | C187: FPSO Almirante Barroso | D187: 145737.9543 | E187: 5 | F187: Búzios / Búzios_Eco / Tambuatá
B188: 6 | C188: FPSO Carioca (Mv-30) | D188: 144189.4444 | E188: 5 | F188: Sépia / Sépia Leste / Sépia_Eco
B189: 7 | C189: Petrobras 70 | D189: 139762.2088 | E189: 6 | F189: Atapu / Atapu_Eco / Anc_Norte_Atapu / Oeste De Atapu
B190: 8 | C190: Petrobras 68 | D190: 135981.0946 | E190: 10 | F190: Berbigão / Sul De Berbigão
B191: 9 | C191: Petrobras 76 | D191: 126878.4457 | E191: 5 | F191: Búzios / Búzios_Eco / Tambuatá
B192: 10 | C192: Petrobras 67 (P-67) | D192: 126409.1221 | E192: 8 | F192: Anc_Tupi / Sul De Tupi / Tupi
B193: 11 | C193: FPSO Cidade de Maricá | D193: 121797.1201 | E193: 7 | F193: Anc_Tupi / Sul De Tupi / Tupi
B194: 12 | C194: Petrobras 75 (P-75) | D194: 115510.2102 | E194: 4 | F194: Búzios / Búzios_Eco / Tambuatá
B195: 13 | C195: FPSO Marechal Duque de Caxias | D195: 106749.6498 | E195: 5 | F195: Anc_Mero / Mero
B196: 14 | C196: Petrobras 74 (P-74) | D196: 106163.333 | E196: 4 | F196: Búzios / Búzios_Eco / Tambuatá
B197: 15 | C197: FPSO Cidade de Saquarema | D197: 104599.7655 | E197: 7 | F197: Anc_Tupi / Sul De Tupi / Tupi
B198: 16 | C198: FPSO Cidade de Itaguaí | D198: 102939.7385 | E198: 7 | F198: Tupi
B199: 17 | C199: Petrobras 66 (P-66) | D199: 99108.4955 | E199: 8 | F199: Anc_Tupi / Sul De Tupi / Tupi
B200: 18 | C200: Petrobras 69 | D200: 98531.40144 | E200: 8 | F200: Anc_Tupi / Sul De Tupi / Tupi
B201: 19 | C201: FPSO Almirante Tamandaré | D201: 98164.34742 | E201: 3 | F201: Búzios / Búzios_Eco / Tambuatá
B202: 20 | C202: FPSO Cidade de Mangaratiba | D202: 97074.98609 | E202: 8 | F202: Tupi
B203: 21 | C203: FPSO Cidade de Paraty | D203: 95180.59029 | E203: 5 | F203: Anc_Tupi / Sul De Tupi / Tupi
B204: 22 | C204: Petrobras 58 | D204: 67934.75551 | E204: 13 | F204: Jubarte
B205: 23 | C205: FPSO Cidade de São Paulo | D205: 64202.2768 | E205: 6 | F205: Nordeste De Sapinhoá / Noroeste De Sapinhoá / Sapinhoá / Sudoeste De Sapinhoá
B206: 24 | C206: FPSO Cidade de Campos dos Goytacazes | D206: 58435.17328 | E206: 14 | F206: Espadarte / Tartaruga Verde / Tartaruga Verde Sudoeste
B207: 25 | C207: FPSO Cidade de Ilha Bela | D207: 54950.64077 | E207: 7 | F207: Nordeste De Sapinhoá / Noroeste De Sapinhoá / Sapinhoá / Sudoeste De Sapinhoá
B208: 26 | C208: Petrobras 53 | D208: 54614.57412 | E208: 9 | F208: Marlim Leste
B209: 27 | C209: Peregrino C | D209: 51239.52707 | E209: 8 | F209: Peregrino / Pitangola
B210: 28 | C210: FPSO Pioneiro de Libra | D210: 43821.89753 | E210: 1 | F210: Anc_Mero / Mero
B211: 29 | C211: FPSO Alexandre de Gusmão | D211: 31720.62345 | E211: 1 | F211: Anc_Mero / Mero
B212: 30 | C212: Polo Arara | D212: 5612.948031 | E212: 36 | F212: Arara Azul / Araracanga / Rio Urucu / Sudoeste Urucu
B214: Tabela 17. As 30 instalações com maior produção de gás natural (Mm³/d)
C216: Instalação | D216: Gás natural (Mm³/d) | E216: Nº poços produtores | F216: Campos produtores
B217: 1 | C217: FPSO Guanabara | D217: 12082.52713 | E217: 6 | F217: Anc_Mero / Mero
B218: 2 | C218: FPSO Sepetiba | D218: 11789.93883 | E218: 6 | F218: Anc_Mero / Mero
B219: 3 | C219: Polo Arara | D219: 7708.278633 | E219: 36 | F219: Arara Azul / Araracanga / Rio Urucu / Sudoeste Urucu
B220: 4 | C220: FPSO Marechal Duque de Caxias | D220: 6951.8123 | E220: 5 | F220: Anc_Mero / Mero
B221: 5 | C221: Petrobras 77 | D221: 6762.764133 | E221: 5 | F221: Búzios / Búzios_Eco / Tambuatá
... 48 more rows
